fUSD/lending_fUSD_20251103
["ID","MTS","AMOUNT","RATE_DAILY","PERIOD"]
[392930724,1762154426066,500.0,0.00030136,120]
[392930725,1762154428306,500.0,0.00030136,120]
[392930726,1762154430811,500.0,0.00030136,120]
[392930727,1762154431233,500.0,0.00030136,120]
[392930728,1762154431805,571.96256768,0.00030136,120]
[392930729,1762154437055,500.0,0.00030136,120]
[392930730,1762154438187,880.42,0.00030136,120]
[392930731,1762154441350,500.0,0.00030136,120]
[392930732,1762154443203,500.0,0.00030136,120]
[392930733,1762154443767,500.0,0.00030136,120]
[392930734,1762154444639,500.0,0.00030136,120]
[392930735,1762154447230,500.0,0.00030136,120]
[392930736,1762154447973,500.0,0.00030136,120]
[392930737,1762154448461,524.81,0.00030136,120]
[392930738,1762154449156,500.0,0.00030136,120]
[392930739,1762154450095,500.0,0.00030136,120]
[392930740,1762154453933,500.0,0.00030136,120]
[392930741,1762154454971,500.0,0.00030136,120]
[392930742,1762154456108,500.0,0.00030136,120]
[392930743,1762154456185,500.0,0.00030136,120]
[392930744,1762154457023,500.0,0.00030136,120]
[392930745,1762154458498,500.0,0.00030136,120]
[392930746,1762154462838,250.0,0.00013997,2]
[392930747,1762154464501,500.0,0.00030136,120]
[392930748,1762154464596,500.0,0.00030136,120]
[392930749,1762154466991,500.0,0.00030136,120]
[392930750,1762154467296,500.0,0.00030136,120]
[392930751,1762154467376,500.0,0.00030136,120]
[392930752,1762154469581,281.7125186,0.00030136,120]
[392930753,1762154470356,500.0,0.00030136,120]
[392930754,1762154471008,500.0,0.00030136,120]
[392930755,1762154471235,500.0,0.00030136,120]
[392930756,1762154473928,500.0,0.00030136,120]
[392930757,1762154476518,500.0,0.00030136,120]
[392930758,1762154477636,500.0,0.00030136,120]
[392930759,1762154477862,500.0,0.00030136,120]
[392930760,1762154480020,500.0,0.00030136,120]
[392930761,1762154480591,500.0,0.00030136,120]
[392930762,1762154480710,500.0,0.00030136,120]
[392930763,1762154481850,500.0,0.00030136,120]
[392930764,1762154482707,500.0,0.00030136,120]
[392930765,1762154484121,500.0,0.00030136,120]
[392930766,1762154486573,500.0,0.00030136,120]
[392930767,1762154489865,500.0,0.00030136,120]
[392930768,1762154490298,460.77080497,0.00030136,120]
[392930769,1762154491011,156.76749139,0.00030136,120]
[392930770,1762154491090,323.21812378,0.00030136,120]
[392930771,1762154491166,500.0,0.00030136,120]
[392930772,1762154491753,176.34304599,0.00030136,120]
[392930773,1762154493583,183.40213493,0.00030136,120]
[392930774,1762154494007,500.0,0.00030136,120]
[392930775,1762154494699,500.0,0.00030136,120]
[392930776,1762154497359,500.0,0.00030136,120]
[392930777,1762154498631,285.96505451,0.00030136,120]
[392930778,1762154499076,623.56,0.00030136,120]
[392930779,1762154499821,500.0,0.00030136,120]
[392930780,1762154500207,205.16229667,0.00030136,120]
[392930781,1762154503494,500.0,0.00030136,120]
[392930782,1762154505008,552.82050046,0.00030136,120]
[392930783,1762154505084,219.1804481,0.00030136,120]
[392930784,1762154506981,500.0,0.00030136,120]
[392930785,1762154507278,500.0,0.00030136,120]
[392930786,1762154508438,500.0,0.00030136,120]
[392930787,1762154508520,587.7944718,0.00030136,120]
[392930788,1762154508561,357.43,0.00013989,2]
[392930789,1762154508638,320.04920996,0.00030136,120]
[392930790,1762154511271,500.0,0.00030136,120]
[392930791,1762154512542,500.0,0.00030136,120]
[392930792,1762154513389,179.46601023,0.00030136,120]
[392930793,1762154514070,500.0,0.00030136,120]
[392930794,1762154516858,500.0,0.00030136,120]
[392930795,1762154517145,228.43877722,0.00030136,120]
[392930796,1762154517494,500.0,0.00030136,120]
[392930797,1762154518064,474.01770673,0.00030136,120]
[392930798,1762154518973,328.38573607,0.00030136,120]
[392930799,1762154519056,420.40781733,0.00030136,120]
[392930800,1762154519132,663.38,0.00030136,120]
[392930801,1762154520096,500.0,0.00030136,120]
[392930802,1762154520853,182.80809613,0.00030136,120]
[392930803,1762154521438,500.0,0.00030136,120]
[392930804,1762154521602,240.22528155,0.00030136,120]
[392930807,1762154545257,826.71077868,0.00013,2]
[392930809,1762154548495,480.95255913,0.00013,2]
[392930810,1762154549482,500.5298232,0.00013,2]
[392930811,1762154551845,500.0,0.00013,2]
[392930812,1762154552159,500.0,0.00012011,2]
[392930813,1762154568653,-310.98840244,0.000189,30]
[392930814,1762154568736,-310.04942012,0.00019845,30]
[392930815,1762154568824,-150.0,0.000248,30]
[392930816,1762154568904,-174.92338916,0.00025,60]
[392930817,1762154568979,-150.0,0.0002525,60]
[392930818,1762154569053,-179.53219072,0.00025662,30]
[392930819,1762154569132,-1195.84,0.00027671,30]
[392930820,1762154569204,-1500.0,0.00028748,31]
[392930821,1762154569279,-151.0,0.00028767,30]
[392930822,1762154569353,-151.0,0.00028767,30]
[392930823,1762154569427,-192.469461,0.00028767,30]
[392930824,1762154569499,-200.0,0.0002882,30]
[392930825,1762154569574,-500.0,0.00029,60]
[392930826,1762154569648,-1016.99041444,0.0002949,30]
[392930827,1762154569724,-139219.06019243,0.000295,30]
[392930828,1762154569795,-477.45087779,0.000295,30]
[392930829,1762154569867,-1000.0,0.00029863,30]
[392930830,1762154569940,-1000.0,0.00029863,30]
[392930831,1762154570012,-1000.0,0.00029863,30]
[392930832,1762154570084,-1000.0,0.00029863,30]
[392930833,1762154570156,-1000.0,0.00029863,30]
[392930834,1762154570230,-1000.0,0.00029863,30]
[392930835,1762154570304,-1000.0,0.00029863,30]
[392930836,1762154570378,-1000.0,0.00029863,30]
[392930837,1762154570453,-1000.0,0.00029863,30]
[392930838,1762154570526,-1000.0,0.00029863,30]
[392930839,1762154570599,-1000.0,0.00029863,30]
[392930840,1762154570670,-1000.0,0.00029863,30]
[392930841,1762154570743,-1000.0,0.00029863,30]
[392930842,1762154570816,-1000.0,0.00029863,30]
[392930843,1762154570892,-1000.0,0.00029863,30]
[392930844,1762154570965,-1000.0,0.00029863,30]
[392930845,1762154571038,-1000.0,0.00029863,30]
[392930846,1762154571110,-650.4827256,0.00029863,30]
[392930847,1762154571185,-50000.0,0.0003,30]
[392930848,1762154571258,-500.0,0.0003,30]
[392930849,1762154571334,-221.0,0.0003,30]
[392930850,1762154571412,-1411.274912,0.0003,30]
[392930851,1762154571493,-17716.72746061,0.0003,30]
[392930852,1762154571566,-1022.49779311,0.0003,30]
[392930853,1762154572031,-786.06,0.00030136,30]
[392930854,1762154572100,-500.0,0.00030136,60]
[392930855,1762154572170,-500.0,0.00030136,90]
[392930856,1762154572243,-846.02,0.00030136,60]
[392930857,1762154572316,-500.0,0.00030136,90]
[392930858,1762154572390,-777.8,0.00030136,30]
[392930859,1762154572462,-517.16410998,0.00030136,100]
[392930860,1762154572533,-822.27,0.00030136,30]
[392930861,1762154572606,-500.0,0.00030136,30]
[392930862,1762154572678,-501.94,0.00030136,60]
[392930863,1762154572747,-507.42794579,0.00030136,60]
[392930864,1762154572817,-500.0,0.00030136,30]
[392930865,1762154572888,-500.0,0.00030136,60]
[392930866,1762154572959,-500.0,0.00030136,30]
[392930867,1762154573029,-1174.63,0.00030136,60]
[392930868,1762154573101,-655.87,0.00030136,30]
[392930869,1762154573173,-500.0,0.00030136,60]
[392930870,1762154573244,-500.0,0.00030136,30]
[392930871,1762154573317,-500.0,0.00030136,120]
[392930872,1762154573389,-504.6,0.00030136,120]
[392930873,1762154573463,-572.64913079,0.00030136,120]
[392930874,1762154573537,-456.59313448,0.00030136,120]
[392930875,1762154573610,-278.50926804,0.00030136,120]
[392930876,1762154573683,-330.11478587,0.00030136,120]
[392930877,1762154573756,-227.81164911,0.00030136,120]
[392930878,1762154573831,-245.92471802,0.00030136,120]
[392930879,1762154573907,-500.0,0.00030136,120]
[392930880,1762154573981,-938.82,0.00030136,120]
[392930881,1762154574055,-232.43116324,0.00030136,120]
[392930882,1762154574128,-404.75932128,0.00030136,120]
[392930883,1762154574202,-459.03870927,0.00030136,120]
[392930884,1762154574278,-441.26169758,0.00030136,120]
[392930885,1762154574355,-500.0,0.00030136,120]
[392930886,1762154574431,-498.69556497,0.00030136,120]
[392930887,1762154574506,-500.0,0.00030136,120]
[392930888,1762154574577,-500.0,0.00030136,120]
[392930889,1762154574651,-586.29,0.00030136,120]
[392930890,1762154574722,-482.24167658,0.00030136,120]
[392930891,1762154574795,-157.90678122,0.00030136,120]
[392930892,1762154574868,-443.51068452,0.00030136,120]
[392930893,1762154574939,-494.29329967,0.00030136,120]
[392930894,1762154575012,-446.61407135,0.00030136,120]
[392930895,1762154575084,-486.63415507,0.00030136,120]
[392930896,1762154575156,-500.0,0.00030136,120]
[392930897,1762154575229,-453.9966867,0.00030136,120]
[392930898,1762154575303,-349.94673101,0.00030136,120]
[392930899,1762154575376,-494.10498282,0.00030136,120]
[392930900,1762154575449,-232.76578468,0.00030136,120]
[392930901,1762154575523,-497.42133962,0.00030136,120]
[392930902,1762154575596,-321.97539511,0.00030136,120]
[392930903,1762154575668,-227.69328535,0.00030136,120]
[392930904,1762154575741,-500.0,0.00030136,120]
[392930905,1762154575813,-500.0,0.00030136,120]
[392930906,1762154575887,-463.17505538,0.00030136,120]
[392930907,1762154575960,-221.08491041,0.00030136,120]
[392930908,1762154576033,-500.0,0.00030136,120]
[392930909,1762154576105,-500.0,0.00030136,120]
[392930910,1762154576178,-500.0,0.00030136,120]
[392930911,1762154576251,-500.0,0.00030136,120]
[392930912,1762154576325,-257.91703737,0.00030136,120]
[392930913,1762154576402,-2736300.7496853,0.00030137,60]
[392930914,1762154576931,10000.01,0.00014022,2]
[392930915,1762154576950,4395.97,0.00014022,2]
[392930916,1762154581502,-150.5,0.0002607,120]
[392930917,1762154581575,-150.5,0.0002608,120]
[392930918,1762154581647,-150.5,0.0002609,120]
[392930919,1762154581728,-228.02,0.0002839,120]
[392930920,1762154581810,-500.0,0.00030136,120]
[392930921,1762154581883,-395.05380277,0.00030136,120]
[392930922,1762154581956,-501.1821486,0.00030136,120]
[392930923,1762154582027,-172.10238794,0.00030136,120]
[392930924,1762154582097,-480.25971645,0.00030136,120]
[392930925,1762154582170,-280.82811786,0.00030136,120]
[392930926,1762154582243,-500.0,0.00030136,120]
[392930927,1762154582320,-2228405.94214554,0.00030137,60]
[392930928,1762154582396,-768085.11168084,0.00030137,60]
[392930929,1762154585007,-500.0,0.00030136,120]
[392930930,1762154585085,-2999500.0,0.00030137,60]
[392930931,1762154590724,150.0,0.00015,120]
[392930932,1762154600331,-274.16,0.000248,30]
[392930933,1762154600421,-548.17,0.00030136,120]
[392930934,1762154600498,-237.95492224,0.00030136,120]
[392930935,1762154600568,-370.78408475,0.00030136,120]
[392930936,1762154600639,-500.0,0.00030136,120]
[392930937,1762154600712,-500.0,0.00030136,120]
[392930938,1762154600784,-500.0,0.00030136,120]
[392930939,1762154600855,-500.0,0.00030136,120]
[392930940,1762154600924,-608.47,0.00030136,120]
[392930941,1762154600995,-500.0,0.00030136,120]
[392930942,1762154601067,-170.24109434,0.00030136,120]
[392930943,1762154601139,-500.0,0.00030136,120]
[392930944,1762154601212,-184.04951133,0.00030137,120]
[392930945,1762154601286,-1197121.58015,0.00030137,60]
[392930946,1762154601364,-477.45087779,0.000304,30]
[392930947,1762154601436,-583.33,0.000304,30]
[392930948,1762154601507,-500.0,0.0003041,120]
[392930949,1762154601580,-255.74352143,0.0003041,120]
[392930950,1762154601652,-500.0,0.0003041,120]
[392930951,1762154601723,-500.0,0.0003041,120]
[392930952,1762154601795,-500.0,0.0003041,120]
[392930953,1762154601864,-700.22,0.0003041,120]
[392930954,1762154601935,-601.56625521,0.0003041,120]
[392930955,1762154602007,-500.0,0.0003041,120]
[392930956,1762154602078,-500.0,0.0003041,120]
[392930957,1762154602147,-500.0,0.0003041,120]
[392930958,1762154602217,-500.0,0.0003041,120]
[392930959,1762154602289,-781.55,0.0003041,120]
[392930960,1762154602363,-500.0,0.0003041,120]
[392930961,1762154602433,-828.91,0.0003041,120]
[392930962,1762154602502,-500.0,0.0003041,120]
[392930963,1762154602569,-515.54,0.0003041,120]
[392930964,1762154602637,-513.04,0.0003041,120]
[392930965,1762154602706,-500.0,0.0003041,120]
[392930966,1762154602775,-500.0,0.0003041,120]
[392930967,1762154602844,-236.55712724,0.0003041,120]
[392930968,1762154602913,-500.0,0.0003041,120]
[392930969,1762154602981,-566.27287511,0.0003041,120]
[392930970,1762154603051,-500.0,0.0003041,120]
[392930971,1762154603119,-500.0,0.0003041,120]
[392930972,1762154603188,-500.0,0.0003041,120]
[392930973,1762154603258,-500.0,0.0003041,120]
[392930974,1762154603330,-500.0,0.0003041,120]
[392930975,1762154603416,-500.0,0.0003041,120]
[392930976,1762154603505,-500.0,0.0003041,120]
[392930977,1762154603578,-550.61,0.0003041,120]
[392930978,1762154603654,-617.9,0.0003041,120]
[392930979,1762154603742,-500.0,0.0003041,120]
[392930980,1762154603822,-500.0,0.0003041,120]
[392930981,1762154603900,-500.0,0.0003041,120]
[392930982,1762154603975,-500.0,0.0003041,120]
[392930983,1762154604049,-500.0,0.0003041,120]
[392930984,1762154604123,-500.0,0.0003041,120]
[392930985,1762154604199,-505.87,0.0003041,120]
[392930986,1762154604273,-786.06,0.0003041,30]
[392930987,1762154604348,-650.3,0.0003041,120]
[392930988,1762154604426,-500.0,0.0003041,120]
[392930989,1762154604516,-500.0,0.0003041,120]
[392930990,1762154604593,-500.0,0.0003041,120]
[392930991,1762154604668,-500.0,0.0003041,120]
[392930992,1762154604742,-500.0,0.0003041,120]
[392930993,1762154604822,-500.0,0.0003041,120]
[392930994,1762154604898,-500.0,0.0003041,120]
[392930995,1762154604967,-500.0,0.0003041,120]
[392930996,1762154605041,-500.0,0.0003041,120]
[392930997,1762154605110,-500.0,0.0003041,120]
[392930998,1762154605176,-568.08917274,0.0003041,120]
[392930999,1762154605243,-655.08,0.0003041,120]
[392931000,1762154605316,-500.0,0.0003041,120]
[392931001,1762154605383,-513.53,0.0003041,120]
[392931002,1762154605655,-500.0,0.0003041,120]
[392931003,1762154605721,-550.44,0.0003041,120]
[392931004,1762154605786,-500.0,0.0003041,120]
[392931005,1762154605851,-500.0,0.0003041,120]
[392931006,1762154605917,-500.0,0.0003041,120]
[392931007,1762154605982,-500.0,0.0003041,120]
[392931008,1762154606046,-500.0,0.0003041,120]
[392931009,1762154606112,-500.0,0.0003041,120]
[392931010,1762154606179,-500.0,0.0003041,120]
[392931011,1762154606244,-500.0,0.0003041,120]
[392931012,1762154606311,-598.39,0.0003041,120]
[392931013,1762154606377,-500.0,0.0003041,120]
[392931014,1762154606441,-564.84,0.0003041,120]
[392931015,1762154606507,-500.0,0.0003041,120]
[392931016,1762154606570,-300.0,0.0003041,120]
[392931017,1762154606632,-489.41573813,0.0003041,120]
[392931018,1762154606695,-500.0,0.0003041,120]
[392931019,1762154606758,-500.0,0.0003041,120]
[392931020,1762154606820,-500.0,0.0003041,60]
[392931021,1762154606885,-967.48,0.0003041,120]
[392931022,1762154606947,-500.0,0.0003041,120]
[392931023,1762154607010,-500.0,0.0003041,120]
[392931024,1762154607074,-500.0,0.0003041,120]
[392931025,1762154607138,-500.0,0.0003041,120]
[392931026,1762154607202,-500.0,0.0003041,90]
[392931027,1762154607266,-500.0,0.0003041,120]
[392931028,1762154607333,-500.0,0.0003041,120]
[392931029,1762154607398,-393.27410891,0.0003041,120]
[392931030,1762154607463,-500.0,0.0003041,120]
[392931031,1762154607529,-500.0,0.0003041,120]
[392931032,1762154607596,-500.0,0.0003041,120]
[392931033,1762154607658,-500.0,0.0003041,120]
[392931034,1762154607724,-500.0,0.0003041,120]
[392931035,1762154607789,-661.97,0.0003041,120]
[392931036,1762154607854,-2165.41,0.0003041,120]
[392931037,1762154607917,-500.0,0.0003041,120]
[392931038,1762154607979,-500.0,0.0003041,120]
[392931039,1762154608040,-500.0,0.0003041,120]
[392931040,1762154608104,-500.0,0.0003041,120]
[392931041,1762154608168,-500.0,0.0003041,120]
[392931042,1762154608234,-500.0,0.0003041,120]
[392931043,1762154608300,-500.0,0.0003041,120]
[392931044,1762154608367,-237.34773601,0.0003041,120]
[392931045,1762154608431,-530.69,0.0003041,120]
[392931046,1762154608498,-575.11,0.0003041,120]
[392931047,1762154608566,-846.02,0.0003041,60]
[392931048,1762154608631,-500.0,0.0003041,120]
[392931049,1762154608695,-500.0,0.0003041,120]
[392931050,1762154608761,-500.0,0.0003041,120]
[392931051,1762154608828,-439.78744833,0.0003041,120]
[392931052,1762154608896,-532.91,0.0003041,120]
[392931053,1762154608963,-500.0,0.0003041,120]
[392931054,1762154609030,-500.0,0.0003041,120]
[392931055,1762154609098,-500.0,0.0003041,120]
[392931056,1762154609164,-592.3,0.0003041,120]
[392931057,1762154609230,-500.0,0.0003041,120]
[392931058,1762154609296,-500.0,0.0003041,120]
[392931059,1762154609361,-500.0,0.0003041,120]
[392931060,1762154609429,-500.0,0.0003041,120]
[392931061,1762154609494,-500.0,0.0003041,120]
[392931062,1762154609560,-500.0,0.0003041,120]
[392931063,1762154609623,-500.0,0.0003041,120]
[392931064,1762154609688,-500.0,0.0003041,120]
[392931065,1762154609756,-500.0,0.0003041,120]
[392931066,1762154609824,-500.0,0.0003041,120]
[392931067,1762154609893,-500.0,0.0003041,120]
[392931068,1762154609958,-500.0,0.0003041,120]
[392931069,1762154610025,-333.08937401,0.0003041,120]
[392931070,1762154610092,-500.0,0.0003041,120]
[392931071,1762154610161,-500.0,0.0003041,120]
[392931072,1762154610228,-500.0,0.0003041,120]
[392931073,1762154610297,-500.0,0.0003041,120]
[392931074,1762154610365,-500.0,0.0003041,120]
[392931075,1762154610430,-500.0,0.0003041,120]
[392931076,1762154610495,-500.0,0.0003041,120]
[392931077,1762154610561,-500.0,0.0003041,90]
[392931078,1762154610626,-500.0,0.0003041,120]
[392931079,1762154610690,-500.0,0.0003041,120]
[392931080,1762154610755,-500.0,0.0003041,120]
[392931081,1762154610819,-500.0,0.0003041,120]
[392931082,1762154610883,-500.0,0.0003041,120]
[392931083,1762154610944,-500.0,0.0003041,120]
[392931084,1762154611006,-500.0,0.0003041,120]
[392931085,1762154611066,-500.0,0.0003041,120]
[392931086,1762154611141,-215.93980906,0.0003041,120]
[392931087,1762154611213,-765.1,0.0003041,120]
[392931088,1762154611281,-500.0,0.0003041,120]
[392931089,1762154611349,-500.0,0.0003041,120]
[392931090,1762154611419,-500.0,0.0003041,120]
[392931091,1762154611486,-500.0,0.0003041,120]
[392931092,1762154611552,-500.0,0.0003041,120]
[392931093,1762154611618,-500.0,0.0003041,120]
[392931094,1762154611683,-500.0,0.0003041,120]
[392931095,1762154611748,-500.0,0.0003041,120]
[392931096,1762154611815,-429.28781573,0.0003041,120]
[392931097,1762154611883,-500.0,0.0003041,120]
[392931098,1762154611950,-500.0,0.0003041,120]
[392931099,1762154612017,-500.0,0.0003041,120]
[392931100,1762154612084,-500.0,0.0003041,120]
[392931101,1762154612156,-500.0,0.0003041,120]
[392931102,1762154612222,-500.0,0.0003041,120]
[392931103,1762154612290,-490.64896356,0.0003041,120]
[392931104,1762154612359,-500.0,0.0003041,120]
[392931105,1762154612692,-500.0,0.0003041,120]
[392931106,1762154612760,-500.0,0.0003041,120]
[392931107,1762154612825,-500.0,0.0003041,120]
[392931108,1762154612892,-500.0,0.0003041,120]
[392931109,1762154612955,-500.0,0.0003041,120]
[392931110,1762154613018,-777.8,0.0003041,30]
[392931111,1762154613082,-720.27,0.0003041,120]
[392931112,1762154613147,-605.27808725,0.0003041,120]
[392931113,1762154613213,-352.65000166,0.0003041,120]
[392931114,1762154613281,-500.0,0.0003041,120]
[392931115,1762154613349,-500.0,0.0003041,120]
[392931116,1762154613420,-1185.9,0.0003041,120]
[392931117,1762154613488,-500.0,0.0003041,120]
[392931118,1762154613561,-500.0,0.0003041,120]
[392931119,1762154613628,-500.0,0.0003041,120]
[392931120,1762154613696,-500.0,0.0003041,120]
[392931121,1762154613763,-500.0,0.0003041,120]
[392931122,1762154613830,-500.0,0.0003041,120]
[392931123,1762154613894,-500.0,0.0003041,120]
[392931124,1762154613958,-500.0,0.0003041,120]
[392931125,1762154614023,-500.0,0.0003041,120]
[392931126,1762154614086,-500.0,0.0003041,120]
[392931127,1762154614151,-500.0,0.0003041,120]
[392931128,1762154614218,-500.0,0.0003041,120]
[392931129,1762154614285,-500.0,0.0003041,120]
[392931130,1762154614353,-500.0,0.0003041,120]
[392931131,1762154614424,-769.93,0.0003041,120]
[392931132,1762154614493,-500.0,0.0003041,120]
[392931133,1762154614563,-500.0,0.0003041,120]
[392931134,1762154614632,-500.0,0.0003041,120]
[392931135,1762154614699,-500.0,0.0003041,120]
[392931136,1762154614767,-249.54021253,0.0003041,120]
[392931137,1762154614835,-500.0,0.0003041,120]
[392931138,1762154614905,-500.0,0.0003041,120]
[392931139,1762154614973,-500.0,0.0003041,120]
[392931140,1762154615040,-449.9342034,0.0003041,120]
[392931141,1762154615108,-500.0,0.0003041,120]
[392931142,1762154615181,-500.0,0.0003041,120]
[392931143,1762154615248,-174.23629186,0.0003041,120]
[392931144,1762154615317,-500.0,0.0003041,120]
[392931145,1762154615384,-500.0,0.0003041,120]
[392931146,1762154615451,-525.7553269,0.0003041,120]
[392931147,1762154615519,-500.0,0.0003041,120]
[392931148,1762154615585,-500.0,0.0003041,120]
[392931149,1762154615651,-628.02,0.0003041,120]
[392931150,1762154615721,-822.27,0.0003041,30]
[392931151,1762154615794,-500.0,0.0003041,120]
[392931152,1762154615865,-500.0,0.0003041,120]
[392931153,1762154615935,-599.94,0.0003041,120]
[392931154,1762154616004,-500.0,0.0003041,120]
[392931155,1762154616073,-500.0,0.0003041,120]
[392931156,1762154616142,-500.0,0.0003041,120]
[392931157,1762154616210,-500.0,0.0003041,120]
[392931158,1762154616280,-500.0,0.0003041,120]
[392931159,1762154616364,-500.0,0.0003041,120]
[392931160,1762154616441,-539.76,0.0003041,120]
[392931161,1762154616511,-500.0,0.0003041,120]
[392931162,1762154616581,-500.0,0.0003041,30]
[392931163,1762154616650,-500.0,0.0003041,120]
[392931164,1762154616719,-500.0,0.0003041,120]
[392931165,1762154616787,-985.99,0.0003041,120]
[392931166,1762154616855,-500.0,0.0003041,120]
[392931167,1762154616921,-500.0,0.0003041,120]
[392931168,1762154616989,-500.0,0.0003041,120]
[392931169,1762154617058,-500.0,0.0003041,120]
[392931170,1762154617128,-500.0,0.0003041,120]
[392931171,1762154617196,-500.0,0.0003041,120]
[392931172,1762154617267,-223.20055137,0.0003041,120]
[392931173,1762154617339,-500.0,0.0003041,120]
[392931174,1762154617409,-500.0,0.0003041,120]
[392931175,1762154617478,-561.17,0.0003041,120]
[392931176,1762154617544,-698.12,0.0003041,120]
[392931177,1762154617608,-500.0,0.0003041,120]
[392931178,1762154617673,-500.0,0.0003041,120]
[392931179,1762154617738,-500.0,0.0003041,120]
[392931180,1762154617804,-501.94,0.0003041,60]
[392931181,1762154617871,-500.0,0.0003041,120]
[392931182,1762154617939,-500.0,0.0003041,120]
[392931183,1762154618008,-500.0,0.0003041,120]
[392931184,1762154618078,-348.784849,0.0003041,120]
[392931185,1762154618149,-500.0,0.0003041,120]
[392931186,1762154618218,-634.93082004,0.0003041,120]
[392931187,1762154618290,-500.0,0.0003041,120]
[392931188,1762154618363,-500.0,0.0003041,120]
[392931189,1762154618434,-500.0,0.0003041,120]
[392931190,1762154618506,-544.92,0.0003041,120]
[392931191,1762154618576,-500.0,0.0003041,120]
[392931192,1762154618648,-500.0,0.0003041,120]
[392931193,1762154618723,-500.0,0.0003041,120]
[392931194,1762154618801,-500.0,0.0003041,120]
[392931195,1762154618875,-500.0,0.0003041,120]
[392931196,1762154618946,-500.0,0.0003041,120]
[392931197,1762154619020,-500.0,0.0003041,120]
[392931198,1762154619088,-426.6191366,0.0003041,120]
[392931199,1762154619158,-500.0,0.0003041,120]
[392931200,1762154619226,-500.0,0.0003041,120]
[392931201,1762154619294,-500.0,0.0003041,120]
[392931202,1762154619367,-500.0,0.0003041,120]
[392931203,1762154619436,-500.0,0.0003041,120]
[392931204,1762154619511,-500.0,0.0003041,120]
[392931205,1762154619581,-500.0,0.0003041,120]
[392931206,1762154619648,-500.0,0.0003041,120]
[392931207,1762154619715,-500.0,0.0003041,120]
[392931208,1762154619781,-500.0,0.0003041,120]
[392931209,1762154620071,-500.0,0.0003041,120]
[392931210,1762154620140,-500.0,0.0003041,120]
[392931211,1762154620213,-500.0,0.0003041,120]
[392931212,1762154620282,-500.0,0.0003041,120]
[392931213,1762154620353,-500.0,0.0003041,120]
[392931214,1762154620427,-500.0,0.0003041,120]
[392931215,1762154620501,-362.92619708,0.0003041,120]
[392931216,1762154620575,-500.0,0.0003041,120]
[392931217,1762154620642,-500.0,0.0003041,120]
[392931218,1762154620711,-500.0,0.0003041,120]
[392931219,1762154620781,-500.0,0.0003041,120]
[392931220,1762154620848,-500.0,0.0003041,120]
[392931221,1762154620916,-500.0,0.0003041,120]
[392931222,1762154620981,-500.0,0.0003041,120]
[392931223,1762154621047,-880.42,0.0003041,120]
[392931224,1762154621114,-500.0,0.0003041,120]
[392931225,1762154621180,-500.0,0.0003041,30]
[392931226,1762154621249,-500.0,0.0003041,120]